bitfinex/quotes_BTCUSD_20251230
["timestamp","ask_amount","ask_price","bid_price","bid_amount"]
[1767056415051,0.0114621,87244.0,87228.0,0.01148]
[1767056415333,0.01146236,87242.0,87228.0,0.01148]
[1767056415496,0.52083251,87240.0,87228.0,0.01148]
[1767056415658,0.52083251,87240.0,87221.0,0.06879015]
[1767056415659,0.52083251,87240.0,87225.0,0.0114646]
[1767056415861,0.52083251,87240.0,87226.0,0.01148]
[1767056415862,0.01146315,87236.0,87226.0,0.01148]
[1767056416138,0.01146315,87236.0,87224.0,0.01148]
[1767056416285,0.01146302,87237.0,87224.0,0.01148]
[1767056416451,0.01146289,87238.0,87224.0,0.01148]
[1767056416661,0.53229514,87240.0,87224.0,0.01148]
[1767056417310,0.01146276,87239.0,87224.0,0.01148]
[1767056417523,0.01146289,87238.0,87224.0,0.01148]
[1767056417928,0.53229514,87240.0,87224.0,0.01148]
[1767056418124,0.53229514,87240.0,87224.0,0.02294473]
[1767056418125,0.52083251,87240.0,87224.0,0.02294473]
[1767056418949,0.53229514,87240.0,87224.0,0.02294473]
[1767056419107,0.01146276,87239.0,87224.0,0.01148]
[1767056419313,0.53229514,87240.0,87224.0,0.01148]
[1767056419940,0.53229514,87240.0,87224.0,0.02294473]
[1767056420202,0.53229514,87240.0,87224.0,0.01148]
[1767056420644,0.05731381,87239.0,87224.0,0.01148]
[1767056420866,0.01146302,87237.0,87224.0,0.01148]
[1767056421642,0.01146289,87238.0,87224.0,0.01148]
[1767056422592,0.01146276,87239.0,87224.0,0.01148]
[1767056422736,0.01146289,87238.0,87224.0,0.01148]
[1767056422932,0.01146276,87239.0,87224.0,0.01148]
[1767056423850,0.53229514,87240.0,87224.0,0.01148]
[1767056424256,0.53229514,87240.0,87222.0,0.0001451]
[1767056424582,0.52114132,87232.0,87222.0,0.01161009]
[1767056424800,0.52059232,87232.0,87222.0,0.01161009]
[1767056425116,0.52059232,87232.0,87223.0,0.01146486]
[1767056425335,0.52059232,87232.0,87222.0,0.01161009]
[1767056425667,0.52059232,87232.0,87224.0,0.01146473]
[1767056425875,0.52114132,87234.0,87222.0,0.01161009]
[1767056426115,0.52114132,87232.0,87222.0,0.01161009]
[1767056426582,0.52114132,87232.0,87223.0,0.01148]
[1767056426781,0.52114132,87232.0,87223.0,0.02294486]
[1767056427005,0.52114132,87232.0,87223.0,0.01148]
[1767056427203,0.52114132,87232.0,87223.0,0.02294486]
[1767056427627,0.52114132,87232.0,87223.0,0.01148]
[1767056434361,0.01146289,87238.0,87223.0,0.01148]
[1767056434592,0.52114132,87233.0,87223.0,0.01148]
[1767056435333,0.52114132,87233.0,87222.0,0.0001451]
[1767056435334,0.13753345,87229.0,87222.0,0.0001451]
[1767056437506,0.52114132,87233.0,87222.0,0.0001451]
[1767056437507,0.13753345,87232.0,87222.0,0.0001451]
[1767056439261,0.13753345,87232.0,87222.0,0.0116251]
[1767056441614,0.01146394,87230.0,87222.0,0.0116251]
[1767056441812,0.000549,87222.0,87219.0,0.01148]
[1767056442012,0.52114132,87229.0,87219.0,0.01148]
[1767056443030,0.52120311,87229.0,87219.0,0.01148]
[1767056443856,0.52120311,87229.0,87216.0,0.01148]
[1767056444061,0.52114132,87227.0,87216.0,0.01148]
[1767056444825,0.52114132,87227.0,87217.0,0.01148]
[1767056450826,0.52114132,87227.0,87215.0,0.0002]
[1767056451068,0.52114132,87225.0,87218.0,0.01148]
[1767056451298,0.52114132,87228.0,87218.0,0.01148]
[1767056454956,0.53260552,87228.0,87218.0,0.01148]
[1767056455193,0.01146434,87227.0,87218.0,0.01148]
[1767056455395,0.53260552,87228.0,87218.0,0.01148]
[1767056456280,0.52114132,87228.0,87218.0,0.01148]
[1767056456484,0.52114132,87228.0,87217.0,0.01148]
[1767056456675,0.52114132,87227.0,87217.0,0.01148]
[1767056457506,0.52114132,87227.0,87215.0,0.0002]
[1767056457717,0.52114132,87225.0,87215.0,0.0002]
[1767056458134,0.13753345,87218.0,87215.0,0.01168]
[1767056460083,0.13698345,87218.0,87215.0,0.008241]
[1767056464178,0.13698345,87218.0,87205.0,0.0001451]
[1767056464374,0.52114132,87215.0,87205.0,0.0001451]
[1767056465088,0.53260723,87215.0,87205.0,0.0001451]
[1767056465295,0.01146604,87214.0,87205.0,1e-07]
[1767056465929,0.01146618,87213.0,87203.0,0.01148]
[1767056466159,0.13753345,87204.0,87203.0,0.011076]
[1767056467015,0.13753345,87204.0,87196.0,0.0001451]
[1767056467456,0.13753345,87204.0,87196.0,1e-07]
[1767056467801,0.13753345,87204.0,87195.0,0.00015813]
[1767056468615,0.13753345,87204.0,87195.0,0.00011579]
[1767056469029,0.13753345,87204.0,87195.0,0.00035589]
[1767056470495,0.14900081,87204.0,87195.0,0.00035589]
[1767056470944,0.01146802,87199.0,87195.0,8.9e-07]
[1767056471177,0.13753345,87200.0,87195.0,8.9e-07]
[1767056472215,0.13753345,87200.0,87195.0,0.00010891]
[1767056475063,0.14900081,87204.0,87200.0,0.000499]
[1767056475273,0.14900081,87204.0,87195.0,0.00010891]
[1767056475476,0.01146749,87203.0,87195.0,0.00010891]
[1767056476386,0.14900081,87204.0,87195.0,0.00010891]
[1767056476790,0.13753345,87204.0,87195.0,0.00010891]
[1767056477194,0.14900081,87204.0,87195.0,0.00010891]
[1767056477407,0.13753345,87204.0,87195.0,0.00010891]
[1767056477606,0.01146644,87211.0,87195.0,0.00010891]
[1767056477807,0.53262132,87210.0,87204.0,0.00055]
[1767056477991,0.53262132,87210.0,87195.0,0.14648891]
[1767056477992,3.45e-06,87201.0,87195.0,0.14648891]
[1767056482892,0.53262132,87210.0,87195.0,0.14648891]
[1767056483041,0.53262132,87210.0,87195.0,0.15795745]
[1767056483444,0.53262132,87210.0,87195.0,0.14648891]
[1767056483651,0.54408789,87210.0,87195.0,0.14648891]
[1767056484186,0.53262132,87210.0,87195.0,0.14648891]
[1767056484551,0.53290665,87210.0,87195.0,0.14648891]
[1767056484954,0.54437322,87210.0,87195.0,0.14648891]
[1767056486424,0.0114667,87209.0,87195.0,0.14648891]
[1767056486832,0.54412952,87210.0,87195.0,0.14648891]
[1767056487384,0.53266295,87210.0,87195.0,0.14648891]
[1767056487796,0.54412952,87210.0,87195.0,0.14648891]
[1767056489032,0.53266295,87210.0,87195.0,0.14648891]
[1767056489635,0.0114667,87209.0,87195.0,0.14648891]
[1767056491069,0.54412952,87210.0,87195.0,0.14648891]
[1767056491286,0.13753345,87204.0,87195.0,0.14648891]
[1767056491654,0.13753345,87204.0,87195.0,0.00010891]
[1767056493420,0.14900081,87204.0,87195.0,0.00010891]
[1767056493589,0.13753345,87204.0,87195.0,0.00010891]
[1767056493768,0.13753345,87204.0,87184.0,0.05752759]
[1767056493769,0.000108,87195.0,87190.0,0.01148]
[1767056493974,7.415e-05,87195.0,87190.0,0.01148]
[1767056495801,1.5e-07,87195.0,87190.0,0.01148]
[1767056495998,0.14733058,87204.0,87190.0,0.06882602]
[1767056496361,0.01072195,87203.0,87192.0,0.01146894]
[1767056496530,0.14733058,87204.0,87192.0,0.01146894]
[1767056496720,0.01072192,87203.0,87192.0,0.01146894]
[1767056496912,0.14733058,87204.0,87190.0,0.0229492]
[1767056497088,0.01072191,87203.0,87190.0,0.0229492]
[1767056497301,0.14733058,87204.0,87190.0,0.0229492]
[1767056497497,0.01072203,87203.0,87190.0,0.0229492]
[1767056497718,0.14733058,87204.0,87190.0,0.0229492]
[1767056497901,0.14733058,87204.0,87190.0,0.01148]
[1767056498549,0.14733058,87204.0,87190.0,0.01143733]
[1767056499838,0.15879794,87204.0,87190.0,0.01143733]
[1767056500035,0.14733058,87204.0,87190.0,0.01143733]
[1767056500953,0.14733058,87204.0,87190.0,0.02290653]
[1767056501153,0.14733058,87204.0,87190.0,0.01143733]
[1767056501354,0.14733058,87204.0,87190.0,0.02290653]
[1767056502398,0.15879794,87204.0,87190.0,0.01143733]
[1767056502747,0.15879794,87204.0,87190.0,0.00538842]
[1767056503809,0.52142665,87200.0,87190.0,0.00538842]
[1767056504011,0.0688084,87199.0,87190.0,0.00531542]
[1767056504215,0.01146867,87194.0,87184.0,0.0001779]
[1767056504436,0.01146867,87194.0,87184.0,0.00025205]
[1767056504437,0.13753345,87189.0,87184.0,0.00025205]
[1767056506621,0.01148,87197.0,87189.0,0.000549]
[1767056506806,0.01148,87197.0,87184.0,0.00025205]
[1767056508043,0.01148,87197.0,87184.0,0.01172204]
[1767056508339,0.01148,87197.0,87184.0,0.00025205]
[1767056508501,0.01148,87197.0,87184.0,0.01172204]
[1767056510961,0.01148,87197.0,87185.0,0.01146986]
[1767056511139,0.01148,87197.0,87184.0,0.01172204]
[1767056511339,0.01148,87197.0,87184.0,0.00025205]
[1767056512023,0.02294828,87197.0,87184.0,0.00025205]
[1767056513072,0.01148,87197.0,87184.0,0.00025205]
[1767056513271,0.02294828,87197.0,87184.0,0.00025205]
[1767056514317,0.01148,87197.0,87184.0,0.00025205]
[1767056514514,0.02294828,87197.0,87184.0,0.00025205]
[1767056514718,0.01146841,87196.0,87184.0,0.00025205]
[1767056514922,0.02294828,87197.0,87184.0,0.00025205]
[1767056515710,0.01148,87197.0,87184.0,0.00025205]
[1767056515933,0.01148,87197.0,87184.0,0.01172204]
[1767056516108,0.01148,87197.0,87184.0,0.00025205]
[1767056516310,0.01148,87197.0,87184.0,0.01172204]
[1767056517071,0.13585058,87204.0,87185.0,0.01146986]
[1767056517072,0.14731794,87204.0,87185.0,0.01146986]
[1767056517232,0.02219525,87203.0,87190.0,0.0114692]
[1767056517433,0.01148,87203.0,87190.0,0.06881465]
[1767056517633,0.01148,87203.0,87192.0,0.01146894]
[1767056518087,0.01148,87203.0,87191.0,0.01146907]
[1767056518409,0.01148,87203.0,87189.0,0.01146933]
[1767056518716,0.13585058,87204.0,87191.0,0.01146907]
[1767056519769,0.13585058,87204.0,87190.0,0.0229492]
[1767056520083,0.13585058,87204.0,87191.0,0.05734536]
[1767056520265,0.13585058,87204.0,87193.0,0.01146881]
[1767056520682,0.13585058,87204.0,87192.0,0.01146894]
[1767056521413,0.13585058,87204.0,87191.0,0.06881443]
[1767056521414,0.13698345,87218.0,87200.0,0.01146788]
[1767056521614,0.01146578,87216.0,87204.0,0.000549]
[1767056522004,0.01146591,87215.0,87199.0,0.01146802]
[1767056522199,0.01146604,87214.0,87198.0,0.01146815]
[1767056522408,0.01146591,87215.0,87197.0,0.01148]
[1767056522409,0.01146618,87213.0,87197.0,0.01148]
[1767056522605,0.01146631,87212.0,87197.0,0.02294828]
[1767056522790,0.01146618,87213.0,87197.0,0.02294828]
[1767056522986,0.01146631,87212.0,87197.0,0.01148]
[1767056523214,0.01146644,87211.0,87197.0,0.01148]
[1767056523492,0.13753345,87203.0,87196.0,0.01148]
[1767056523744,0.13753345,87203.0,87194.0,0.01148]
[1767056526849,0.00055,87194.0,87191.0,0.01148]
[1767056527182,0.13753345,87203.0,87191.0,0.01148]
[1767056528159,0.13753345,87203.0,87191.0,0.02294907]
[1767056529130,0.13753345,87203.0,87191.0,0.01148]
[1767056532311,0.13753345,87203.0,87191.0,0.02294907]
[1767056532528,0.13753345,87203.0,87191.0,0.01148]
[1767056533244,0.13753345,87203.0,87191.0,0.02294907]
[1767056533595,0.13753345,87203.0,87188.0,1e-08]
[1767056533821,0.13753345,87203.0,87190.0,0.0229492]
[1767056534017,0.13753345,87203.0,87190.0,0.01148]
[1767056534220,0.13753345,87203.0,87190.0,0.0229492]
[1767056534427,0.13753345,87203.0,87190.0,0.01148]
[1767056536728,0.13753345,87203.0,87190.0,0.0229492]
[1767056537018,0.13753345,87203.0,87190.0,0.01148]
[1767056539656,0.13753345,87203.0,87190.0,0.01083471]
[1767056539856,0.14900094,87203.0,87190.0,1e-08]
[1767056540282,0.52142665,87200.0,87181.0,0.01147038]
[1767056540495,0.52142665,87200.0,87182.0,0.01148]
[1767056540496,0.13753345,87189.0,87182.0,0.01148]
[1767056540659,0.13753345,87189.0,87182.0,0.01083471]
[1767056541065,0.13753345,87189.0,87180.0,2e-08]
[1767056541434,0.13753345,87189.0,87170.0,0.52182665]
[1767056541435,0.13753345,87189.0,87173.0,0.06882864]
[1767056541709,0.13753345,87189.0,87172.0,0.01187158]
[1767056541910,0.13753345,87189.0,87174.0,0.01148]
[1767056542319,0.13753345,87189.0,87174.0,0.02295131]
[1767056542320,0.01148,87188.0,87174.0,0.02295131]
[1767056543172,0.01148,87188.0,87175.0,0.01147117]
[1767056543587,0.01148,87188.0,87176.0,0.01147104]
[1767056543773,0.01148,87188.0,87176.0,0.01082577]
[1767056543939,0.01148,87188.0,87175.0,0.01147117]
[1767056544134,0.01148,87188.0,87174.0,0.02295131]
[1767056544577,0.01148,87188.0,87172.0,0.00040001]
[1767056544578,0.02294946,87188.0,87172.0,0.00040001]
[1767056544928,0.01148,87188.0,87172.0,0.00040001]
[1767056545458,0.02294946,87188.0,87172.0,0.00040001]
[1767056546134,0.01148,87188.0,87172.0,0.01147157]
[1767056546540,0.52170345,87182.0,87169.0,0.0004]
[1767056546754,0.52170345,87180.0,87169.0,0.0004]
[1767056547381,0.52170345,87180.0,87167.0,4.6e-06]
[1767056547581,0.01148,87181.0,87167.0,4.6e-06]
[1767056547582,0.52170345,87177.0,87167.0,4.6e-06]
[1767056548232,0.52170345,87177.0,87165.0,5.52e-06]
[1767056548357,0.6592369,87175.0,87165.0,5.52e-06]
[1767056549016,0.01148,87174.0,87165.0,5.52e-06]
[1767056550715,0.02295131,87174.0,87165.0,5.52e-06]
[1767056551362,0.01148,87174.0,87165.0,5.52e-06]
[1767056552478,0.02295131,87174.0,87165.0,5.52e-06]
[1767056552686,0.01148,87174.0,87165.0,5.52e-06]
[1767056552842,0.02295131,87174.0,87165.0,5.52e-06]
[1767056553042,0.01147144,87173.0,87165.0,5.52e-06]
[1767056553261,0.01147209,87168.0,87165.0,5.52e-06]
[1767056553463,0.01147209,87168.0,87158.0,0.0001446]
[1767056553464,0.01147236,87166.0,87155.0,0.0004]
[1767056553660,0.52170345,87165.0,87146.0,0.0004]
[1767056553867,0.52170345,87160.0,87146.0,0.01188]
[1767056554037,0.52170345,87160.0,87146.0,0.02335499]
[1767056554377,0.52170345,87160.0,87146.0,0.0004]
[1767056554582,0.52170345,87157.0,87147.0,8.3e-07]
[1767056555013,0.52170345,87157.0,87146.0,0.00035697]
[1767056555212,0.52170345,87157.0,87146.0,0.00010791]
[1767056555496,0.52170345,87156.0,87146.0,0.00010791]
[1767056556139,0.52170345,87156.0,87145.0,0.0001998]
[1767056556344,0.52170345,87155.0,87145.0,0.0001998]
[1767056558297,0.52170345,87155.0,87144.0,0.01148]
[1767056558599,0.52170345,87155.0,87142.0,0.0004]
[1767056558821,0.52170345,87152.0,87142.0,0.0004]
[1767056560592,0.52170345,87152.0,87139.0,0.0004]
[1767056560889,0.52170345,87150.0,87139.0,0.01187591]
[1767056561694,0.52170345,87150.0,87140.0,0.01147578]
[1767056561893,0.52170345,87150.0,87139.0,0.01187591]
[1767056562953,0.52170345,87150.0,87140.0,0.01147578]
[1767056564338,0.52170345,87150.0,87139.0,0.01187591]
[1767056564674,0.52170345,87150.0,87139.0,0.0004]
[1767056564898,0.52170345,87150.0,87139.0,0.01187591]
[1767056565068,0.52170345,87150.0,87139.0,0.0004]
[1767056567138,0.52170345,87150.0,87139.0,0.01187591]
[1767056567961,0.52170345,87150.0,87140.0,0.01147578]
[1767056568124,0.52170345,87150.0,87139.0,0.01187591]
[1767056568324,0.52170345,87150.0,87140.0,0.01147578]
[1767056569184,0.52170345,87150.0,87139.0,0.01187591]
[1767056569711,0.52170345,87150.0,87140.0,0.01147578]
[1767056570784,0.52170345,87150.0,87139.0,0.01187591]
[1767056570991,0.52170345,87150.0,87140.0,0.01147578]
[1767056571191,0.52170345,87150.0,87139.0,0.0004]
[1767056572601,0.52170345,87148.0,87136.0,0.02150765]
[1767056572918,0.52170345,87146.0,87136.0,0.02150765]
[1767056573092,0.52170345,87146.0,87136.0,0.01148]
[1767056573294,0.52170345,87146.0,87136.0,0.01083472]
[1767056573474,0.52170345,87146.0,87136.0,0.01148103]
[1767056573693,0.52170345,87146.0,87136.0,4.72e-06]
[1767056573890,0.52170345,87146.0,87136.0,0.01148103]
[1767056574093,0.52170345,87146.0,87136.0,4.72e-06]
[1767056574490,0.52170345,87146.0,87136.0,0.01148103]
[1767056574851,0.52170345,87146.0,87135.0,0.06885851]
[1767056575565,0.52170345,87146.0,87135.0,0.02069765]
[1767056575963,0.52130181,87146.0,87135.0,0.02069765]
[1767056576315,0.52130181,87146.0,87136.0,1e-08]
[1767056576536,0.52170345,87146.0,87136.0,1e-08]
[1767056576737,0.52170345,87146.0,87134.0,0.00736724]
[1767056577072,0.01148,87153.0,87134.0,0.00736724]
[1767056577073,0.52170345,87144.0,87136.0,0.057381]
[1767056577215,0.52170345,87146.0,87138.0,0.01147604]
[1767056577417,0.52170345,87148.0,87138.0,0.01147604]
[1767056577826,0.52170345,87148.0,87139.0,0.01147591]
[1767056578046,0.52170345,87148.0,87137.0,0.01147618]
[1767056578266,0.52170345,87148.0,87139.0,0.01147591]
[1767056579216,0.52170345,87148.0,87138.0,0.01147591]
[1767056579436,0.52170345,87148.0,87138.0,0.01147604]
[1767056579720,0.52170345,87148.0,87137.0,0.01147618]
[1767056579931,0.52170345,87148.0,87135.0,0.01147644]
[1767056580141,0.01148,87153.0,87133.0,0.0005954]
[1767056580142,0.52170345,87145.0,87133.0,0.0005954]
[1767056581570,0.53318345,87145.0,87133.0,0.0005954]
[1767056581907,0.13753345,87144.0,87133.0,0.0005954]
[1767056582074,0.52170345,87143.0,87133.0,0.0005954]
[1767056583541,0.13753345,87144.0,87133.0,0.0005954]
[1767056583765,0.52170345,87143.0,87133.0,0.0005954]
[1767056589794,0.04592,87151.0,87143.0,0.000549]
[1767056589940,0.13753345,87149.0,87133.0,0.0005954]
[1767056590140,0.22170345,87143.0,87133.0,0.0005954]
[1767056590363,0.01148,87148.0,87133.0,0.0005954]
[1767056590558,0.52170345,87143.0,87134.0,0.01147657]
[1767056590874,0.52170345,87144.0,87134.0,0.01147657]
[1767056591071,0.52170345,87144.0,87133.0,0.0120721]
[1767056591481,0.52170345,87150.0,87135.0,0.01147644]
[1767056591638,0.52170345,87145.0,87144.0,0.000549]
[1767056591844,0.01148,87149.0,87144.0,0.000549]
[1767056592040,0.01148,87149.0,87133.0,0.0120721]
[1767056592459,0.01148,87149.0,87134.0,0.01147657]
[1767056593583,0.01148,87149.0,87133.0,0.0120721]
[1767056593932,0.52170345,87143.0,87134.0,0.01147657]
[1767056594107,0.52170345,87150.0,87143.0,0.000549]
[1767056594290,0.01148,87149.0,87143.0,0.000549]
[1767056594677,0.01148,87149.0,87133.0,0.0005954]
[1767056595696,0.52170345,87143.0,87133.0,0.0005954]
[1767056595920,0.01148,87142.0,87133.0,0.00037279]
[1767056596584,0.01148,87142.0,87133.0,0.01184949]
[1767056596768,0.01148,87142.0,87133.0,0.00037279]
[1767056599015,0.01148,87142.0,87132.0,0.01147683]
[1767056599016,0.01092757,87133.0,87130.0,0.0114771]
[1767056599743,0.01092757,87133.0,87131.0,0.05738485]
[1767056600201,0.00874129,87133.0,87131.0,0.05738485]
[1767056600810,0.52170345,87141.0,87134.0,1e-08]
[1767056601112,0.01148,87142.0,87134.0,1e-08]
[1767056601258,0.01148,87142.0,87133.0,1e-08]
[1767056602284,0.01148,87142.0,87133.0,0.01147671]
[1767056602657,0.01148,87142.0,87133.0,1e-08]
[1767056604458,0.01148,87142.0,87133.0,0.01147671]
[1767056604729,0.01148,87142.0,87134.0,0.01147657]
[1767056604933,0.01148,87142.0,87133.0,0.01147671]
[1767056605136,0.01148,87142.0,87134.0,0.01147657]
[1767056605291,0.01048071,87144.0,87138.0,0.01147604]
[1767056605494,0.01148,87147.0,87140.0,1e-08]
[1767056605893,0.00010794,87156.0,87137.0,0.06885644]
[1767056606095,0.13753345,87154.0,87139.0,0.0573795]
[1767056606276,0.13753345,87154.0,87139.0,0.01147591]
[1767056606491,0.13753345,87154.0,87140.0,0.01147578]
[1767056606698,0.13753345,87154.0,87140.0,1e-08]
[1767056608883,0.52203543,87150.0,87140.0,1e-08]
[1767056609264,0.13849,87149.0,87140.0,1e-08]
[1767056609464,0.01148,87148.0,87140.0,1e-08]
[1767056609644,0.16144473,87148.0,87140.0,1e-08]
[1767056610167,0.14997,87148.0,87140.0,1e-08]
[1767056615634,0.16144473,87148.0,87140.0,1e-08]
[1767056616243,0.14997,87148.0,87140.0,1e-08]
[1767056627765,0.52203543,87140.0,87121.0,0.2291714]
[1767056627975,0.53351543,87140.0,87121.0,0.2291714]
[1767056628195,0.53351543,87140.0,87128.0,0.01147736]
[1767056628397,0.53351543,87140.0,87129.0,0.01147723]
[1767056629189,0.53351543,87140.0,87130.0,0.0114771]
[1767056629841,0.00031475,87130.0,87129.0,0.01147723]
[1767056630064,4.75e-06,87130.0,87129.0,0.01147723]
[1767056630579,4.75e-06,87130.0,87128.0,0.01147736]
[1767056630985,0.52203543,87150.0,87136.0,0.01147631]
[1767056631151,0.52203543,87150.0,87130.0,0.06886261]
[1767056631152,0.01148,87149.0,87130.0,0.06886261]
[1767056631345,0.01148,87149.0,87132.0,0.01147683]
[1767056631940,0.01148,87149.0,87133.0,0.0114767]
[1767056632397,0.01148,87149.0,87132.0,0.01147683]
[1767056632693,0.01148,87149.0,87133.0,0.0114767]
[1767056633337,0.01148,87149.0,87134.0,0.01147657]
[1767056633466,0.01148,87148.0,87141.0,1e-08]
[1767056633676,1.39e-06,87148.0,87136.0,0.01147631]
[1767056633857,1.39e-06,87148.0,87136.0,0.06885755]
[1767056634231,1.39e-06,87148.0,87138.0,0.01147604]
[1767056634512,1.39e-06,87148.0,87136.0,0.01147631]
[1767056634513,1.39e-06,87148.0,87137.0,0.01147618]
[1767056634892,1.39e-06,87148.0,87136.0,0.01147631]
[1767056635418,1.39e-06,87148.0,87134.0,0.05738254]
[1767056635419,0.0002,87151.0,87139.0,0.01147591]
[1767056635561,0.0002245,87158.0,87146.0,0.06884958]
[1767056635760,0.0002245,87158.0,87136.0,0.12668]
[1767056635761,0.01148,87157.0,87140.0,0.22951346]
[1767056636093,0.01148,87157.0,87146.0,0.01147499]
[1767056636416,0.01148,87157.0,87145.0,0.01147512]
[1767056636641,0.01148,87157.0,87149.0,1e-08]
[1767056636780,0.01148,87157.0,87145.0,0.06885014]
[1767056636982,0.01148,87157.0,87145.0,0.01147498]
[1767056637168,0.01148,87157.0,87146.0,0.01147499]
[1767056637376,0.01148,87157.0,87143.0,0.06885188]
[1767056637677,0.01148,87157.0,87145.0,0.01147512]
[1767056638099,0.01148,87157.0,87146.0,0.01147499]
[1767056638301,0.01148,87157.0,87144.0,0.01147525]
[1767056639121,0.01148,87157.0,87146.0,1e-08]
[1767056639328,0.01148,87157.0,87146.0,0.011475]
[1767056639645,0.01148,87157.0,87146.0,1e-08]
[1767056642402,0.01148,87157.0,87145.0,0.0573756]
[1767056642868,0.01148,87157.0,87143.0,2.64e-06]
[1767056643031,0.01148,87157.0,87146.0,0.01147499]
[1767056643236,0.01148,87157.0,87145.0,0.01147512]
[1767056643920,0.01148,87157.0,87147.0,0.01147486]
[1767056644130,0.01148,87157.0,87146.0,0.01147499]
[1767056645122,0.01148,87157.0,87147.0,0.01147486]
[1767056645323,0.01148,87157.0,87146.0,0.04589352]
[1767056645562,0.01148,87157.0,87148.0,0.01147473]
[1767056645761,0.01148,87157.0,87148.0,0.01126388]
[1767056646634,0.01148,87157.0,87148.0,0.01105303]
[1767056646971,0.52203543,87160.0,87147.0,0.01147486]
[1767056647113,0.52203543,87160.0,87141.0,0.01148]
[1767056647319,0.0002,87166.0,87151.0,0.01147433]
[1767056647561,0.01148,87162.0,87151.0,5.784e-05]
[1767056653593,0.01148,87162.0,87151.0,0.01153217]
[1767056653791,0.01148,87162.0,87152.0,0.0114742]
[1767056653991,0.01148,87163.0,87152.0,0.0114742]
[1767056654157,0.01148,87163.0,87151.0,0.01153217]
[1767056654360,0.13753345,87169.0,87153.0,0.01147407]
[1767056654614,0.01148,87168.0,87156.0,0.0002]
[1767056654917,0.01148,87168.0,87151.0,0.01153217]
[1767056655092,0.01148,87168.0,87151.0,5.784e-05]
[1767056655628,0.14642,87167.0,87151.0,5.784e-05]
[1767056656187,0.14642,87167.0,87148.0,0.01148]
[1767056656368,0.01148,87168.0,87140.0,0.01147578]
[1767056656369,0.14596,87159.0,87140.0,0.01147578]
[1767056656576,0.14596,87159.0,87141.0,0.01148]
[1767056660823,0.14578643,87159.0,87141.0,0.01148]
[1767056666506,0.52203696,87151.0,87141.0,0.01148]
[1767056666903,0.52203696,87151.0,87140.0,1e-08]
[1767056671916,0.52203696,87150.0,87140.0,1e-08]
[1767056672343,0.52203696,87150.0,87140.0,0.01147579]
[1767056672743,0.52203696,87150.0,87140.0,1e-08]
[1767056672940,0.52203696,87150.0,87140.0,0.01147579]
[1767056673381,0.52203696,87150.0,87140.0,1e-08]
[1767056673584,0.52203696,87150.0,87140.0,0.01147579]
[1767056673932,0.52203696,87150.0,87141.0,0.01147565]
[1767056674131,0.52203696,87150.0,87141.0,0.01127475]
[1767056674652,0.52203696,87150.0,87140.0,0.01147579]
[1767056675248,0.52203696,87150.0,87140.0,1e-08]
[1767056675450,0.52203696,87150.0,87140.0,0.01147579]
[1767056676163,0.01148,87154.0,87140.0,0.01147579]
[1767056676355,0.52203696,87150.0,87141.0,0.01147565]
[1767056676833,0.45206696,87150.0,87141.0,0.01147565]
[1767056677657,0.45206696,87150.0,87140.0,1e-08]
[1767056678751,0.45206696,87150.0,87141.0,0.01147565]
[1767056679420,0.45206696,87150.0,87140.0,0.01147579]
[1767056679883,0.45206696,87150.0,87141.0,0.01147565]
[1767056680062,0.45206696,87150.0,87140.0,0.01147579]
[1767056680604,0.45206696,87150.0,87140.0,1e-08]
[1767056680944,0.52203696,87150.0,87140.0,1e-08]
[1767056681332,0.52203696,87150.0,87141.0,0.01147565]
[1767056682409,0.52203696,87150.0,87142.0,0.01147552]
[1767056682613,0.52213546,87152.0,87141.0,0.01147565]
[1767056683254,0.52213546,87152.0,87140.0,1e-08]
[1767056683555,0.52203696,87150.0,87140.0,1e-08]
[1767056683918,0.52203696,87150.0,87140.0,0.01147579]
[1767056684305,0.52203696,87150.0,87141.0,0.01147565]
[1767056684501,0.52203696,87150.0,87142.0,0.01147552]
[1767056684964,0.52203696,87150.0,87141.0,0.01147565]
[1767056685673,0.52203696,87151.0,87142.0,0.01147552]
[1767056685841,0.52203696,87151.0,87143.0,0.01147539]
[1767056686009,0.52203696,87151.0,87142.0,0.01147552]
[1767056686211,0.52203696,87151.0,87141.0,0.01147565]
[1767056686411,0.52203696,87151.0,87143.0,0.01147539]
[1767056687029,9.85e-05,87152.0,87144.0,0.01147525]
[1767056687436,9.85e-05,87152.0,87145.0,0.01147512]
[1767056688640,9.85e-05,87152.0,87144.0,0.01147525]
[1767056689225,9.85e-05,87152.0,87143.0,0.01147539]
[1767056689446,9.85e-05,87152.0,87142.0,0.01147552]
[1767056689649,9.85e-05,87152.0,87143.0,0.01147539]
[1767056690197,9.85e-05,87152.0,87144.0,0.01147525]
[1767056690397,9.85e-05,87152.0,87143.0,0.01147539]
[1767056690898,9.85e-05,87152.0,87144.0,0.01147525]
[1767056691259,9.85e-05,87152.0,87143.0,0.01147539]
[1767056691463,9.85e-05,87152.0,87144.0,0.01147525]
[1767056692297,9.85e-05,87152.0,87143.0,0.01147539]
[1767056693055,9.85e-05,87152.0,87142.0,0.01147552]
[1767056693675,9.85e-05,87152.0,87143.0,0.01147539]
[1767056694826,9.85e-05,87152.0,87142.0,0.01147552]
[1767056694989,9.85e-05,87152.0,87143.0,0.01147539]
[1767056695184,9.85e-05,87152.0,87142.0,0.01147552]
[1767056695388,9.85e-05,87152.0,87141.0,0.05737768]
[1767056695389,0.14421,87151.0,87140.0,0.01148]
[1767056695585,9.85e-05,87152.0,87140.0,0.01148]
[1767056696060,9.85e-05,87152.0,87143.0,0.01147539]
[1767056696413,9.85e-05,87152.0,87142.0,0.01147552]
[1767056697788,9.85e-05,87152.0,87141.0,0.01147565]
[1767056697981,9.85e-05,87152.0,87142.0,0.01147552]
[1767056698531,0.01148,87155.0,87142.0,0.01147552]
[1767056698712,0.01148,87155.0,87142.0,0.01167552]
[1767056699334,0.01148,87155.0,87143.0,0.01147539]
[1767056699569,0.01148,87155.0,87144.0,0.01147525]
[1767056699703,0.01148,87156.0,87143.0,0.01147539]
[1767056700077,0.01148,87156.0,87142.0,0.01167552]
[1767056700778,0.01148,87156.0,87142.0,0.0002]
[1767056702272,0.01148,87156.0,87144.0,0.01147525]
[1767056702479,0.01048071,87157.0,87144.0,0.0688509]
[1767056702796,7.1e-07,87157.0,87145.0,0.10239514]
[1767056703153,7.1e-07,87157.0,87146.0,0.01147499]
[1767056703562,0.0116242,87161.0,87148.0,0.01147473]
[1767056703767,0.52203696,87160.0,87148.0,0.01092329]
[1767056704124,0.52203696,87160.0,87147.0,0.01147486]
[1767056704331,0.52203696,87160.0,87145.0,0.11387026]
[1767056704892,0.52203696,87160.0,87147.0,0.01147486]
[1767056705091,0.52203696,87160.0,87147.0,0.01092343]
[1767056705712,0.52203696,87160.0,87148.0,0.01147473]
[1767056705934,0.52203696,87160.0,87147.0,0.01092343]
[1767056706114,0.52203696,87160.0,87148.0,0.01147473]